fUSD/lending_fUSD_20250223
["ID","MTS","AMOUNT","RATE_DAILY","PERIOD"]
[354192216,1740341473664,-500.0,0.0001652,2]
[354192217,1740341473675,-500.0,0.0001652,2]
[354192218,1740341473685,-500.0,0.0001652,2]
[354192219,1740341473904,-500.0,0.0001652,2]
[354192220,1740341473915,-500.0,0.0001652,2]
[354192221,1740341473925,-500.0,0.0001652,2]
[354192222,1740341473935,-500.0,0.0001652,2]
[354192223,1740341473945,-754.38,0.0001652,2]
[354192224,1740341473955,-500.0,0.0001652,2]
[354192225,1740341473965,-500.0,0.0001652,2]
[354192226,1740341473976,-500.0,0.0001652,2]
[354192227,1740341473987,-500.0,0.0001652,2]
[354192228,1740341473998,-583.33,0.0001652,2]
[354192229,1740341474008,-500.0,0.0001652,2]
[354192230,1740341474019,-529.72819946,0.0001652,2]
[354192231,1740341474029,-500.0,0.0001652,2]
[354192232,1740341474039,-500.0,0.0001652,2]
[354192233,1740341474048,-703.55,0.0001652,2]
[354192234,1740341474059,-587.55,0.0001652,2]
[354192235,1740341474070,-500.0,0.0001652,2]
[354192236,1740341474080,-524.17,0.0001652,2]
[354192237,1740341474091,-500.0,0.0001652,2]
[354192238,1740341474100,-1048.29,0.0001652,2]
[354192239,1740341474110,-500.0,0.0001652,2]
[354192240,1740341474121,-500.0,0.0001652,2]
[354192241,1740341474132,-707.88,0.0001652,2]
[354192242,1740341474143,-209.395798,0.0001652,2]
[354192243,1740341474153,-500.0,0.0001652,2]
[354192244,1740341474165,-209.395798,0.0001652,2]
[354192245,1740341474176,-500.0,0.0001652,2]
[354192246,1740341474186,-209.395798,0.0001652,2]
[354192247,1740341474196,-500.0,0.0001652,2]
[354192248,1740341474206,-651.87,0.0001652,2]
[354192249,1740341474217,-209.395798,0.0001652,2]
[354192250,1740341474227,-209.395798,0.0001652,2]
[354192251,1740341474237,-209.395798,0.0001652,2]
[354192252,1740341474247,-500.0,0.0001652,2]
[354192253,1740341474257,-500.0,0.0001652,2]
[354192254,1740341474267,-500.0,0.0001652,2]
[354192255,1740341474277,-508.48,0.0001652,2]
[354192256,1740341474287,-500.0,0.0001652,2]
[354192257,1740341474298,-875.34,0.0001652,2]
[354192258,1740341474308,-615.71,0.0001652,2]
[354192259,1740341474318,-500.0,0.0001652,2]
[354192260,1740341474327,-500.0,0.0001652,2]
[354192261,1740341474337,-500.0,0.0001652,2]
[354192262,1740341474347,-533.58,0.0001652,2]
[354192263,1740341474357,-500.0,0.0001652,2]
[354192264,1740341474367,-1238.96,0.0001652,2]
[354192265,1740341474376,-500.0,0.0001652,2]
[354192266,1740341474386,-504.85,0.0001652,2]
[354192267,1740341474395,-500.0,0.0001652,2]
[354192268,1740341474405,-604.16,0.0001652,2]
[354192269,1740341474415,-200.50840857,0.0001652,2]
[354192270,1740341474424,-500.0,0.0001652,2]
[354192271,1740341474434,-622.31,0.0001652,2]
[354192272,1740341474443,-500.0,0.0001652,2]
[354192273,1740341474454,-606.5,0.0001652,2]
[354192274,1740341474464,-500.0,0.0001652,2]
[354192275,1740341474474,-500.0,0.0001652,2]
[354192276,1740341474483,-918.92,0.0001652,2]
[354192277,1740341474493,-500.0,0.0001652,2]
[354192278,1740341474503,-500.0,0.0001652,2]
[354192279,1740341474513,-500.0,0.0001652,2]
[354192280,1740341474524,-638.07,0.0001652,2]
[354192281,1740341474534,-500.0,0.0001652,2]
[354192282,1740341474544,-500.0,0.0001652,2]
[354192283,1740341474553,-500.0,0.0001652,2]
[354192284,1740341474563,-500.0,0.0001652,2]
[354192285,1740341474575,-500.0,0.0001652,2]
[354192286,1740341474585,-547.34,0.0001652,2]
[354192287,1740341474595,-525.49,0.0001652,2]
[354192288,1740341474604,-500.0,0.0001652,2]
[354192289,1740341474615,-500.0,0.0001652,2]
[354192290,1740341474624,-605.04,0.0001652,2]
[354192291,1740341474634,-500.0,0.0001652,2]
[354192292,1740341474645,-500.0,0.0001652,2]
[354192293,1740341474655,-661.11,0.0001652,2]
[354192294,1740341474664,-500.0,0.0001652,2]
[354192295,1740341474674,-500.0,0.0001652,2]
[354192296,1740341474683,-650.91,0.0001652,2]
[354192297,1740341474692,-500.0,0.0001652,2]
[354192298,1740341474702,-734.61,0.0001652,2]
[354192299,1740341474712,-500.0,0.0001652,2]
[354192300,1740341474722,-500.0,0.0001652,2]
[354192301,1740341474732,-1165.43,0.0001652,2]
[354192302,1740341474742,-500.0,0.0001652,2]
[354192303,1740341474751,-881.99,0.0001652,2]
[354192304,1740341474760,-500.0,0.0001652,2]
[354192305,1740341474770,-500.0,0.0001652,2]
[354192306,1740341474779,-500.0,0.0001652,2]
[354192307,1740341474789,-705.384696,0.0001652,2]
[354192308,1740341474799,-500.0,0.0001652,2]
[354192309,1740341474809,-563.2,0.0001652,2]
[354192310,1740341474819,-705.384696,0.0001652,2]
[354192311,1740341474828,-721.86,0.0001652,2]
[354192312,1740341474838,-705.384696,0.0001652,2]
[354192313,1740341474847,-567.85,0.0001652,2]
[354192314,1740341474857,-500.0,0.0001652,2]
[354192315,1740341474867,-626.06,0.0001652,2]
[354192316,1740341474877,-562.5,0.0001652,2]
[354192317,1740341474887,-500.0,0.0001652,2]
[354192318,1740341474898,-583.33,0.0001652,2]
[354192319,1740341474908,-826.36,0.0001652,2]
[354192320,1740341474918,-705.384696,0.0001652,2]
[354192321,1740341474928,-705.384696,0.0001652,2]
[354192322,1740341474938,-705.384704,0.0001652,2]
[354192323,1740341474948,-500.0,0.0001652,2]
[354192324,1740341474958,-500.0,0.0001652,2]
[354192325,1740341474967,-500.0,0.0001652,2]
[354192326,1740341474978,-151.0,0.0001652,2]
[354192327,1740341474987,-151.0,0.0001652,2]
[354192328,1740341474997,-537.13,0.0001652,2]
[354192329,1740341475007,-655.63,0.0001652,2]
[354192330,1740341475017,-500.0,0.0001652,2]
[354192331,1740341475027,-500.0,0.0001652,2]
[354192332,1740341475036,-500.0,0.0001652,2]
[354192333,1740341475046,-575.14,0.0001652,2]
[354192334,1740341475055,-635.93,0.0001652,2]
[354192335,1740341475066,-713.72,0.0001652,2]
[354192336,1740341475076,-786.57,0.0001652,2]
[354192337,1740341475086,-500.0,0.0001652,2]
[354192338,1740341475096,-500.0,0.0001652,2]
[354192339,1740341475106,-500.0,0.0001652,2]
[354192340,1740341475116,-500.0,0.0001652,2]
[354192341,1740341475126,-1475.21,0.0001652,2]
[354192342,1740341475137,-500.0,0.0001652,2]
[354192343,1740341475147,-500.0,0.0001652,2]
[354192344,1740341475157,-500.0,0.0001652,2]
[354192345,1740341475167,-457.60483152,0.0001652,2]
[354192346,1740341475176,-1747.32,0.0001652,2]
[354192347,1740341475186,-500.0,0.0001652,2]
[354192348,1740341475196,-651.79,0.0001652,2]
[354192349,1740341475205,-933.09,0.0001652,2]
[354192350,1740341475215,-516.58122436,0.0001652,2]
[354192351,1740341475225,-500.0,0.0001652,2]
[354192352,1740341475234,-500.0,0.0001652,2]
[354192353,1740341475244,-644.12,0.0001652,2]
[354192354,1740341475253,-607.04,0.0001652,2]
[354192355,1740341475262,-513.19,0.0001652,2]
[354192356,1740341475271,-625.59,0.0001652,2]
[354192357,1740341475281,-543.66,0.0001652,2]
[354192358,1740341475290,-500.0,0.0001652,2]
[354192359,1740341475299,-500.0,0.0001652,2]
[354192360,1740341475308,-500.0,0.0001652,2]
[354192361,1740341475317,-625.94,0.0001652,2]
[354192362,1740341475327,-500.0,0.0001652,2]
[354192363,1740341475336,-882.22,0.0001652,2]
[354192364,1740341475345,-500.0,0.0001652,2]
[354192365,1740341475354,-500.0,0.0001652,2]
[354192366,1740341475363,-500.0,0.0001652,2]
[354192367,1740341475373,-151.0,0.0001652,2]
[354192368,1740341475382,-151.0,0.0001652,2]
[354192369,1740341475391,-500.0,0.0001652,2]
[354192370,1740341475400,-926.78,0.0001652,2]
[354192371,1740341475409,-151.0,0.0001652,2]
[354192372,1740341475417,-500.0,0.0001652,2]
[354192373,1740341475426,-542.02,0.0001652,2]
[354192374,1740341475435,-1299.11,0.0001652,2]
[354192375,1740341475444,-500.0,0.0001652,2]
[354192376,1740341475454,-525.01,0.0001652,2]
[354192377,1740341475463,-511.50340082,0.0001652,2]
[354192378,1740341475472,-500.0,0.0001652,2]
[354192379,1740341475481,-500.0,0.0001652,2]
[354192380,1740341475490,-593.23,0.0001652,2]
[354192381,1740341475499,-684.03,0.0001652,2]
[354192382,1740341475508,-500.0,0.0001652,2]
[354192383,1740341475518,-500.0,0.0001652,2]
[354192384,1740341475527,-1022.88,0.0001652,2]
[354192385,1740341475536,-500.0,0.0001652,2]
[354192386,1740341475546,-625.0,0.0001652,2]
[354192387,1740341475556,-562.5,0.0001652,2]
[354192388,1740341475565,-525.02,0.0001652,2]
[354192389,1740341475578,-500.0,0.0001652,2]
[354192390,1740341475587,-520.83,0.0001652,2]
[354192391,1740341475597,-500.0,0.0001652,2]
[354192392,1740341475606,-500.0,0.0001652,2]
[354192393,1740341475615,-500.0,0.0001652,2]
[354192394,1740341475625,-500.0,0.0001652,2]
[354192395,1740341475634,-500.0,0.0001652,2]
[354192396,1740341475645,-500.0,0.0001652,2]
[354192397,1740341475655,-500.0,0.0001652,2]
[354192398,1740341475665,-500.0,0.0001652,2]
[354192399,1740341475674,-824.27,0.0001652,2]
[354192400,1740341475684,-604.7,0.0001652,2]
[354192401,1740341475694,-500.0,0.0001652,2]
[354192402,1740341475704,-1218.92,0.0001652,2]
[354192403,1740341475714,-562.5,0.0001652,2]
[354192404,1740341475723,-500.0,0.0001652,2]
[354192405,1740341475732,-914.387716,0.0001652,2]
[354192406,1740341475742,-500.0,0.0001652,2]
[354192407,1740341475751,-500.0,0.0001652,2]
[354192408,1740341475760,-914.387716,0.0001652,2]
[354192409,1740341475770,-890.71,0.0001652,2]
[354192410,1740341475779,-914.387716,0.0001652,2]
[354192411,1740341475788,-500.0,0.0001652,2]
[354192412,1740341475797,-500.0,0.0001652,2]
[354192413,1740341475806,-500.0,0.0001652,2]
[354192414,1740341475815,-668.94,0.0001652,2]
[354192415,1740341475824,-500.0,0.0001652,2]
[354192416,1740341475833,-1512.01,0.0001652,2]
[354192417,1740341475842,-500.0,0.0001652,2]
[354192418,1740341475851,-500.0,0.0001652,2]
[354192419,1740341475860,-914.387716,0.0001652,2]
[354192420,1740341475869,-583.33,0.0001652,2]
[354192421,1740341475878,-914.387716,0.0001652,2]
[354192422,1740341475887,-914.387724,0.0001652,2]
[354192423,1740341475896,-500.0,0.0001652,2]
[354192424,1740341475905,-520.83,0.0001652,2]
[354192425,1740341475914,-500.0,0.0001652,2]
[354192426,1740341475922,-500.0,0.0001652,2]
[354192427,1740341475931,-503.24132153,0.0001652,2]
[354192428,1740341475940,-500.0,0.0001652,2]
[354192429,1740341475949,-500.0,0.0001652,2]
[354192430,1740341475958,-500.0,0.0001652,2]
[354192431,1740341475967,-500.0,0.0001652,2]
[354192432,1740341475976,-500.0,0.0001652,2]
[354192433,1740341475985,-500.0,0.0001652,2]
[354192434,1740341475994,-500.0,0.0001652,2]
[354192435,1740341476003,-654.86,0.0001652,2]
[354192436,1740341476012,-500.0,0.0001652,2]
[354192437,1740341476021,-500.0,0.0001652,2]
[354192438,1740341476030,-500.0,0.0001652,2]
[354192439,1740341476039,-500.0,0.0001652,2]
[354192440,1740341476048,-214.38354722,0.0001652,2]
[354192441,1740341476057,-500.0,0.0001652,2]
[354192442,1740341476067,-502.68,0.0001652,2]
[354192443,1740341476076,-500.0,0.0001652,2]
[354192444,1740341476086,-809.78,0.0001652,2]
[354192445,1740341476095,-701.41,0.0001652,2]
[354192446,1740341476104,-500.0,0.0001652,2]
[354192447,1740341476114,-500.0,0.0001652,2]
[354192448,1740341476123,-500.0,0.0001652,2]
[354192449,1740341476132,-500.0,0.0001652,2]
[354192450,1740341476141,-1096.81,0.0001652,2]
[354192451,1740341476150,-620.24,0.0001652,2]
[354192452,1740341476159,-500.0,0.0001652,2]
[354192453,1740341476169,-543.39,0.0001652,2]
[354192454,1740341476178,-500.0,0.0001652,2]
[354192455,1740341476187,-500.0,0.0001652,2]
[354192456,1740341476196,-1176.61,0.0001652,2]
[354192457,1740341476205,-500.0,0.0001652,2]
[354192458,1740341476215,-500.0,0.0001652,2]
[354192459,1740341476223,-500.0,0.0001652,2]
[354192460,1740341476232,-500.0,0.0001652,2]
[354192461,1740341476242,-500.0,0.0001652,2]
[354192462,1740341476251,-500.0,0.0001652,2]
[354192463,1740341476260,-522.55,0.0001652,2]
[354192464,1740341476270,-500.0,0.0001652,2]
[354192465,1740341476279,-1487.91,0.0001652,2]
[354192466,1740341476288,-500.0,0.0001652,2]
[354192467,1740341476357,-500.0,0.0001652,2]
[354192468,1740341476367,-500.0,0.0001652,2]
[354192469,1740341476375,-500.0,0.0001652,2]
[354192470,1740341476384,-501.40001036,0.0001652,2]
[354192471,1740341476393,-541.66,0.0001652,2]
[354192472,1740341476402,-612.19,0.0001652,2]
[354192473,1740341476411,-1611.47,0.0001652,2]
[354192474,1740341476420,-1144.84,0.0001652,2]
[354192475,1740341476429,-500.0,0.0001652,2]
[354192476,1740341476438,-500.0,0.0001652,2]
[354192477,1740341476447,-500.0,0.0001652,2]
[354192478,1740341476456,-500.0,0.0001652,2]
[354192479,1740341476465,-500.0,0.0001652,2]
[354192480,1740341476474,-500.0,0.0001652,2]
[354192481,1740341476483,-616.47154469,0.0001652,2]
[354192482,1740341476491,-500.0,0.0001652,2]
[354192483,1740341476500,-500.0,0.0001652,2]
[354192484,1740341476509,-500.0,0.0001652,2]
[354192485,1740341476518,-500.0,0.0001652,2]
[354192486,1740341476527,-822.88,0.0001652,2]
[354192487,1740341476536,-500.0,0.0001652,2]
[354192488,1740341476545,-500.0,0.0001652,2]
[354192489,1740341476554,-854.68,0.0001652,2]
[354192490,1740341476563,-500.0,0.0001652,2]
[354192491,1740341476573,-1127.38,0.0001652,2]
[354192492,1740341476583,-500.0,0.0001652,2]
[354192493,1740341476592,-500.0,0.0001652,2]
[354192494,1740341476601,-500.0,0.0001652,2]
[354192495,1740341476611,-1784.4,0.0001652,2]
[354192496,1740341476621,-500.0,0.0001652,2]
[354192497,1740341476630,-234.16213843,0.0001652,2]
[354192498,1740341476639,-500.0,0.0001652,2]
[354192499,1740341476649,-500.0,0.0001652,2]
[354192500,1740341476658,-591.29868333,0.0001652,2]
[354192501,1740341476668,-500.0,0.0001652,2]
[354192502,1740341476677,-500.0,0.0001652,2]
[354192503,1740341476686,-562.5,0.0001652,2]
[354192504,1740341476695,-1630.09,0.0001652,2]
[354192505,1740341476704,-500.0,0.0001652,2]
[354192506,1740341476713,-500.0,0.0001652,2]
[354192507,1740341476723,-500.0,0.0001652,2]
[354192508,1740341476732,-899.01,0.0001652,2]
[354192509,1740341476742,-523.95,0.0001652,2]
[354192510,1740341476751,-2186.75,0.0001652,2]
[354192511,1740341476760,-500.0,0.0001652,2]
[354192512,1740341476769,-500.0,0.0001652,2]
[354192513,1740341476778,-500.0,0.0001652,2]
[354192514,1740341476787,-500.0,0.0001652,2]
[354192515,1740341476796,-2023.46,0.0001652,2]
[354192516,1740341476806,-1465.73,0.0001652,2]
[354192517,1740341476815,-500.0,0.0001652,2]
[354192518,1740341476823,-500.0,0.0001652,2]
[354192519,1740341476832,-500.0,0.0001652,2]
[354192520,1740341476841,-500.0,0.0001652,2]
[354192521,1740341476850,-500.0,0.0001652,2]
[354192522,1740341476859,-681.65,0.0001652,2]
[354192523,1740341476868,-500.0,0.0001652,2]
[354192524,1740341476877,-859.97,0.0001652,2]
[354192525,1740341476886,-709.09,0.0001652,2]
[354192526,1740341476895,-500.0,0.0001652,2]
[354192527,1740341476904,-500.0,0.0001652,2]
[354192528,1740341476913,-500.0,0.0001652,2]
[354192529,1740341476922,-500.0,0.0001652,2]
[354192530,1740341476931,-500.0,0.0001652,2]
[354192531,1740341476940,-2000.2,0.0001652,2]
[354192532,1740341476949,-223.982921,0.0001652,2]
[354192533,1740341476958,-223.982921,0.0001652,2]
[354192534,1740341476967,-500.0,0.0001652,2]
[354192535,1740341476976,-223.982921,0.0001652,2]
[354192536,1740341476985,-500.0,0.0001652,2]
[354192537,1740341476994,-1708.84,0.0001652,2]
[354192538,1740341477002,-500.0,0.0001652,2]
[354192539,1740341477011,-500.4,0.0001652,2]
[354192540,1740341477020,-500.0,0.0001652,2]
[354192541,1740341477029,-1608.1,0.0001652,2]
[354192542,1740341477038,-500.0,0.0001652,2]
[354192543,1740341477047,-223.982921,0.0001652,2]
[354192544,1740341477056,-759.42,0.0001652,2]
[354192545,1740341477065,-223.982921,0.0001652,2]
[354192546,1740341477074,-500.0,0.0001652,2]
[354192547,1740341477083,-223.982917,0.0001652,2]
[354192548,1740341477093,-500.0,0.0001652,2]
[354192549,1740341477102,-500.0,0.0001652,2]
[354192550,1740341477112,-2391.72,0.0001652,2]
[354192551,1740341477122,-1149.79,0.0001652,2]
[354192552,1740341477131,-700.17,0.0001652,2]
[354192553,1740341477141,-1692.38,0.0001652,2]
[354192554,1740341477151,-500.0,0.0001652,2]
[354192555,1740341477159,-500.0,0.0001652,2]
[354192556,1740341477168,-500.0,0.0001652,2]
[354192557,1740341477178,-500.0,0.0001652,2]
[354192558,1740341477187,-907.8,0.0001652,2]
[354192559,1740341477195,-500.0,0.0001652,2]
[354192560,1740341477204,-500.0,0.0001652,2]
[354192561,1740341477213,-644.34,0.0001652,2]
[354192562,1740341477222,-5709.1,0.0001652,2]
[354192563,1740341477231,-500.0,0.0001652,2]
[354192564,1740341477240,-500.0,0.0001652,2]
[354192565,1740341477249,-1232.56,0.0001652,2]
[354192566,1740341477258,-500.0,0.0001652,2]
[354192567,1740341477267,-500.0,0.0001652,2]
[354192568,1740341477276,-502.52,0.0001652,2]
[354192569,1740341477285,-3793.33,0.0001652,2]
[354192570,1740341477293,-500.0,0.0001652,2]
[354192571,1740341477302,-500.0,0.0001652,2]
[354192572,1740341477311,-936.14,0.0001652,2]
[354192573,1740341477320,-500.0,0.0001652,2]
[354192574,1740341477330,-500.0,0.0001652,2]
[354192575,1740341477339,-500.0,0.0001652,2]
[354192576,1740341477347,-692.05,0.0001652,2]
[354192577,1740341477356,-516.93,0.0001652,2]
[354192578,1740341477365,-603.97,0.0001652,2]
[354192579,1740341477374,-500.0,0.0001652,2]
[354192580,1740341477383,-1311.25,0.0001652,2]
[354192581,1740341477393,-500.0,0.0001652,7]
[354192582,1740341477402,-939.11,0.0001652,2]
[354192583,1740341477411,-2773.64,0.0001652,2]
[354192584,1740341477421,-500.0,0.0001652,2]
[354192585,1740341477430,-500.0,0.0001652,2]
[354192586,1740341477439,-500.0,0.0001652,2]
[354192587,1740341477449,-500.0,0.0001652,2]
[354192588,1740341477458,-1671.06,0.0001652,2]
[354192589,1740341477467,-849.92,0.0001652,2]
[354192590,1740341477477,-500.0,0.0001652,2]
[354192591,1740341477486,-520.83,0.0001652,2]
[354192592,1740341477495,-562.5,0.0001652,2]
[354192593,1740341477505,-1390.9,0.0001652,2]
[354192594,1740341477514,-500.0,0.0001652,2]
[354192595,1740341477523,-500.0,0.0001652,2]
[354192596,1740341477533,-500.0,0.0001652,2]
[354192597,1740341477542,-2910.23,0.0001652,2]
[354192598,1740341477551,-2364.76,0.0001652,2]
[354192599,1740341477560,-584.77643901,0.0001652,2]
[354192600,1740341477570,-500.0,0.0001652,2]
[354192601,1740341477582,-500.0,0.0001652,2]
[354192602,1740341477591,-3182.97,0.0001652,2]
[354192603,1740341477600,-500.0,0.0001652,2]
[354192604,1740341477609,-787.93,0.0001652,2]
[354192605,1740341477620,-4546.98,0.0001652,2]
[354192606,1740341477630,-500.0,0.0001652,2]
[354192607,1740341477639,-500.0,0.0001652,2]
[354192608,1740341477651,-611.88,0.0001652,2]
[354192609,1740341477662,-646.64381347,0.0001652,2]
[354192610,1740341477670,-500.0,0.0001652,2]
[354192611,1740341477679,-616.13,0.0001652,2]
[354192612,1740341477688,-806.23,0.0001652,2]
[354192613,1740341477698,-602.34,0.0001652,2]
[354192614,1740341477707,-1786.091285,0.0001652,2]
[354192615,1740341477717,-804.56,0.0001652,2]
[354192616,1740341477726,-1786.091285,0.0001652,2]
[354192617,1740341477734,-1786.091285,0.0001652,2]
[354192618,1740341477744,-547.45,0.0001652,2]
[354192619,1740341477752,-1469.55,0.0001652,2]
[354192620,1740341477761,-546.8,0.0001652,2]
[354192621,1740341477770,-500.0,0.0001652,2]
[354192622,1740341477779,-500.0,0.0001652,2]
[354192623,1740341477788,-500.0,0.0001652,2]
[354192624,1740341477797,-3687.98,0.0001652,2]
[354192625,1740341477806,-1786.091285,0.0001652,2]
[354192626,1740341477815,-1786.091285,0.0001652,2]
[354192627,1740341477824,-1786.091291,0.0001652,2]
[354192628,1740341477835,-956.55,0.0001652,2]
[354192629,1740341477843,-738.28,0.0001652,2]
[354192630,1740341477852,-500.0,0.0001652,2]
[354192631,1740341477862,-687.87,0.0001652,2]
[354192632,1740341477872,-500.0,0.0001652,2]
[354192633,1740341477881,-500.0,0.0001652,2]
[354192634,1740341477891,-500.0,0.0001652,2]
[354192635,1740341477900,-551.51,0.0001652,2]
[354192636,1740341477910,-562.5,0.0001652,2]
[354192637,1740341477919,-1548.92,0.0001652,2]
[354192638,1740341477929,-500.0,0.0001652,2]
[354192639,1740341477938,-500.0,0.0001652,2]
[354192640,1740341477947,-500.0,0.0001652,2]
[354192641,1740341477957,-500.0,0.0001652,2]
[354192642,1740341477966,-1693.72,0.0001652,2]
[354192643,1740341477977,-1789.61,0.0001652,2]
[354192644,1740341477986,-731.36,0.0001652,2]
[354192645,1740341477995,-500.0,0.0001652,2]
[354192646,1740341478004,-500.0,0.0001652,2]
[354192647,1740341478013,-597.2,0.0001652,2]
[354192648,1740341478022,-3336.63,0.0001652,2]
[354192649,1740341478032,-500.0,0.0001652,2]
[354192650,1740341478041,-1407.94,0.0001652,2]
[354192651,1740341478050,-500.0,0.0001652,2]
[354192652,1740341478058,-549.89784245,0.0001652,2]
[354192653,1740341478067,-919.05,0.0001652,2]
[354192654,1740341478077,-771.98,0.0001652,2]
[354192655,1740341478086,-500.0,0.0001652,2]
[354192656,1740341478095,-583.33,0.0001652,2]
[354192657,1740341478104,-500.0,0.0001652,2]
[354192658,1740341478113,-500.0,0.0001652,2]
[354192659,1740341478122,-500.0,0.0001652,2]
[354192660,1740341478131,-1533.21,0.0001652,2]
[354192661,1740341478140,-528.97,0.0001652,2]
[354192662,1740341478151,-2285.67,0.0001652,2]
[354192663,1740341478160,-3821.35,0.0001652,2]
[354192664,1740341478169,-500.0,0.0001652,2]
[354192665,1740341478178,-983.66,0.0001652,2]
[354192666,1740341478188,-2472.62,0.0001652,2]
[354192667,1740341478197,-500.0,0.0001652,2]
[354192668,1740341478206,-500.0,0.0001652,2]
[354192669,1740341478215,-1539.3,0.0001652,2]
[354192670,1740341478225,-1254.88,0.0001652,2]
[354192671,1740341478234,-514.85,0.0001652,2]
[354192672,1740341478243,-500.0,0.0001652,2]
[354192673,1740341478252,-573.64,0.0001652,2]
[354192674,1740341478261,-500.0,0.0001652,2]
[354192675,1740341478270,-151.0,0.0001652,2]
[354192676,1740341478279,-500.0,0.0001652,2]
[354192677,1740341478288,-500.0,0.0001652,2]
[354192678,1740341478297,-500.0,0.0001652,2]
[354192679,1740341478306,-274.627637,0.0001652,2]
[354192680,1740341478315,-1177.46,0.0001652,2]
[354192681,1740341478323,-2327.86,0.0001652,2]
[354192682,1740341478333,-500.0,0.0001652,2]
[354192683,1740341478341,-2452.21,0.0001652,2]
[354192684,1740341478351,-500.0,0.0001652,2]
[354192685,1740341478360,-500.0,0.0001652,2]
[354192686,1740341478369,-500.0,0.0001652,2]
[354192687,1740341478379,-727.71,0.0001652,2]
[354192688,1740341478388,-500.0,0.0001652,2]
[354192689,1740341478397,-516.92,0.0001652,2]
[354192690,1740341478406,-571.33,0.0001652,2]
[354192691,1740341478415,-500.0,0.0001652,2]
[354192692,1740341478424,-500.0,0.0001652,2]
[354192693,1740341478433,-1687.58,0.0001652,2]
[354192694,1740341478443,-791.11,0.0001652,2]
[354192695,1740341478453,-2891.15,0.0001652,2]
[354192696,1740341478463,-500.0,0.0001652,2]
[354192697,1740341478473,-500.0,0.0001652,2]
[354192698,1740341478482,-3232.3,0.0001652,2]
[354192699,1740341478492,-4036.71,0.0001652,2]
[354192700,1740341478501,-1381.34,0.0001652,2]
[354192701,1740341478510,-500.0,0.0001652,2]
[354192702,1740341478519,-500.0,0.0001652,2]
[354192703,1740341478529,-500.0,0.0001652,2]
[354192704,1740341478538,-878.37,0.0001652,2]
[354192705,1740341478547,-2049.43,0.0001652,2]
[354192706,1740341478556,-570.63,0.0001652,2]
[354192707,1740341478565,-500.0,0.0001652,2]
[354192708,1740341478577,-1962.51,0.0001652,2]
[354192709,1740341478586,-3642.41,0.0001652,2]
[354192710,1740341478595,-561.93246369,0.0001652,2]
[354192711,1740341478605,-591.8,0.0001652,2]
[354192712,1740341478614,-2413.05,0.0001652,2]
[354192713,1740341478625,-500.0,0.0001652,2]
[354192714,1740341478634,-562.5,0.0001652,2]
[354192715,1740341478643,-500.0,0.0001652,2]